bitfinex-derivatives/quotes_ETHF0:USTF0_20260123
["timestamp","ask_amount","ask_price","bid_price","bid_amount"]
[1769208640997,2.43922679,2960.2,2958.9,2.50870069]
[1769208640998,1.16605958,2960.0,2958.9,2.50870069]
[1769208641199,2.43922679,2960.2,2958.9,2.50870069]
[1769208641501,1.16600779,2960.1,2958.9,2.50870069]
[1769208641801,0.87550615,2960.0,2958.9,2.50870069]
[1769208642001,2.43922679,2960.2,2958.9,2.50870069]
[1769208642202,1.16600558,2960.1,2958.9,2.50870069]
[1769208642502,0.87550457,2960.0,2958.9,2.50870069]
[1769208642704,2.43922679,2960.2,2958.9,2.50870069]
[1769208643002,1.16595914,2960.1,2958.9,2.50870069]
[1769208643201,0.8754696,2960.0,2958.9,2.50870069]
[1769208643401,2.43922679,2960.2,2958.9,2.50870069]
[1769208643600,1.16591578,2960.1,2958.9,2.50870069]
[1769208643800,0.87543696,2960.0,2958.9,2.50870069]
[1769208644000,2.43922679,2960.2,2958.9,2.50870069]
[1769208644201,1.1659158,2960.1,2958.9,2.50870069]
[1769208644398,0.87543697,2960.0,2958.9,2.50870069]
[1769208644597,2.43922679,2960.2,2958.9,2.50870069]
[1769208644797,1.16587863,2960.1,2958.9,2.50870069]
[1769208644995,0.87540883,2960.0,2958.9,2.50870069]
[1769208645198,2.43922679,2960.2,2958.9,2.50870069]
[1769208645404,1.16584883,2960.1,2959.0,2.50870069]
[1769208645709,0.00259094,2960.2,2959.0,2.50870069]
[1769208645900,1.16583546,2960.1,2959.0,2.50870069]
[1769208646100,0.00259094,2960.2,2959.0,2.50870069]
[1769208646300,1.16583333,2960.1,2959.0,2.50870069]
[1769208646506,0.00259094,2960.2,2959.0,2.50870069]
[1769208646706,1.16583283,2960.1,2959.0,2.50870069]
[1769208647004,0.00259094,2960.2,2959.0,2.50870069]
[1769208647205,1.16583291,2960.1,2959.0,2.50870069]
[1769208647405,0.00259094,2960.2,2959.0,2.50870069]
[1769208647605,1.16583264,2960.1,2959.0,2.50870069]
[1769208647805,0.00259094,2960.2,2959.0,2.50870069]
[1769208648002,1.16583264,2960.1,2959.0,2.50870069]
[1769208648206,0.00259094,2960.2,2959.0,2.50870069]
[1769208648402,1.16583569,2960.1,2959.0,2.50870069]
[1769208648709,0.00259094,2960.2,2959.0,2.50870069]
[1769208648909,1.16580889,2960.1,2959.0,2.50870069]
[1769208649108,0.00259094,2960.2,2959.0,2.50870069]
[1769208649407,1.16581722,2960.1,2959.0,2.50870069]
[1769208649610,0.00259094,2960.2,2959.0,2.50870069]
[1769208649906,1.1658204,2960.1,2959.0,2.50870069]
[1769208650099,0.00259094,2960.2,2959.0,2.50870069]
[1769208650303,1.16583124,2960.1,2959.0,2.50870069]
[1769208650502,0.00259094,2960.2,2959.0,2.50870069]
[1769208650703,1.16583503,2960.1,2959.0,2.50870069]
[1769208651004,0.00259094,2960.2,2959.0,2.50870069]
[1769208651297,1.16583503,2960.1,2959.0,2.50870069]
[1769208651497,0.00259094,2960.2,2959.0,2.50870069]
[1769208651702,1.16585223,2960.1,2959.0,2.50870069]
[1769208651902,0.00259094,2960.2,2959.0,2.50870069]
[1769208652103,1.16585234,2960.1,2959.0,2.50870069]
[1769208652405,0.00259094,2960.2,2959.0,2.50870069]
[1769208652607,1.16587233,2960.1,2959.0,2.50870069]
[1769208652909,0.00259094,2960.2,2959.0,2.50870069]
[1769208653110,1.16587239,2960.1,2959.0,2.50870069]
[1769208653411,0.00259094,2960.2,2959.0,2.50870069]
[1769208653610,1.16589514,2960.1,2959.0,2.50870069]
[1769208653812,0.00259094,2960.2,2959.0,2.50870069]
[1769208654112,1.16570656,2960.1,2959.0,2.50870069]
[1769208654310,0.00259094,2960.2,2959.0,2.50870069]
[1769208654508,1.16573239,2960.1,2959.0,2.50870069]
[1769208654706,0.00259094,2960.2,2959.0,2.50870069]
[1769208654908,1.16573238,2960.1,2959.0,2.50870069]
[1769208655111,0.00259094,2960.2,2959.0,2.50870069]
[1769208655411,1.16575738,2960.1,2959.0,2.50870069]
[1769208655610,0.00259094,2960.2,2959.0,2.50870069]
[1769208655909,1.16576142,2960.1,2959.0,2.50870069]
[1769208656112,0.00259094,2960.2,2959.0,2.50870069]
[1769208656312,1.16578344,2960.1,2959.0,2.50870069]
[1769208656511,0.00259094,2960.2,2959.0,2.50870069]
[1769208656715,1.16579179,2960.1,2959.0,2.50870069]
[1769208656914,0.00259094,2960.2,2959.0,2.50870069]
[1769208657108,1.16579181,2960.1,2959.0,2.50870069]
[1769208657308,0.00259094,2960.2,2959.0,2.50870069]
[1769208657516,1.16582869,2960.1,2959.0,2.50870069]
[1769208657717,0.00259094,2960.2,2959.0,2.50870069]
[1769208658012,1.16582856,2960.1,2959.0,2.50870069]
[1769208658213,0.00259094,2960.2,2959.0,2.50870069]
[1769208658516,1.16586954,2960.1,2959.0,2.50870069]
[1769208658712,0.00259094,2960.2,2959.0,2.50870069]
[1769208658912,1.16586953,2960.1,2959.0,2.50870069]
[1769208659113,0.00259094,2960.2,2959.0,2.50870069]
[1769208659305,1.16590276,2960.1,2959.0,2.50870069]
[1769208659509,0.87538726,2960.0,2959.0,2.50870069]
[1769208659804,0.00259094,2960.2,2959.0,2.50870069]
[1769208660108,1.1659143,2960.1,2959.0,2.50870069]
[1769208660309,0.87538727,2960.0,2959.0,2.50870069]
[1769208660510,0.00259094,2960.2,2959.0,2.50870069]
[1769208660709,1.16595124,2960.1,2959.0,2.50870069]
[1769208660909,0.87541446,2960.0,2959.0,2.50870069]
[1769208661107,0.00259094,2960.2,2959.0,2.50870069]
[1769208661309,0.87541448,2960.1,2959.0,2.50870069]
[1769208661514,0.87541448,2960.0,2959.0,2.50870069]
[1769208661806,0.00259094,2960.2,2959.0,2.50870069]
[1769208662011,1.16601013,2960.1,2959.0,2.50870069]
[1769208662218,0.8754581,2960.0,2959.0,2.50870069]
[1769208662519,0.00259094,2960.2,2959.0,2.50870069]
[1769208662719,1.16607785,2960.1,2959.0,2.50870069]
[1769208663017,0.87550813,2960.0,2959.0,2.50870069]
[1769208663218,0.00259094,2960.2,2959.0,2.50870069]
[1769208663516,1.16615762,2960.1,2959.0,2.50870069]
[1769208663718,0.87556694,2960.0,2959.0,2.50870069]
[1769208663909,0.00259094,2960.2,2959.0,2.50870069]
[1769208664112,1.16615789,2960.1,2959.0,2.50870069]
[1769208664312,0.87556713,2960.0,2959.0,2.50870069]
[1769208664613,0.00259094,2960.2,2959.0,2.50870069]
[1769208664814,1.16625593,2960.1,2959.0,2.50870069]
[1769208665114,0.87563902,2960.0,2959.0,2.50870069]
[1769208665314,0.00259094,2960.2,2959.0,2.50870069]
[1769208665515,1.16632483,2960.1,2959.0,2.50870069]
[1769208665715,0.87569903,2960.0,2959.0,2.50870069]
[1769208666018,0.00259094,2960.2,2959.0,2.50870069]
[1769208666218,1.16632605,2960.1,2959.0,2.50870069]
[1769208666417,0.8756999,2960.0,2959.0,2.50870069]
[1769208666620,0.00259094,2960.2,2959.0,2.50870069]
[1769208666820,1.1663226,2960.1,2959.0,2.50870069]
[1769208667020,0.87569735,2960.0,2959.0,2.50870069]
[1769208667217,0.00259094,2960.2,2959.0,2.50870069]
[1769208667421,1.16633205,2960.1,2959.0,2.50870069]
[1769208667718,0.87570408,2960.0,2959.0,2.50870069]
[1769208668018,0.00259094,2960.2,2959.0,2.50870069]
[1769208668219,1.1663339,2960.1,2959.0,2.50870069]
[1769208668420,0.87570594,2960.0,2959.0,2.50870069]
[1769208668619,0.00259094,2960.2,2959.0,2.50870069]
[1769208668816,1.16636122,2960.1,2959.0,2.50870069]
[1769208669022,0.87572647,2960.0,2959.0,2.50870069]
[1769208669320,0.00259094,2960.2,2959.0,2.50870069]
[1769208669524,1.16637948,2960.1,2959.0,2.50870069]
[1769208669824,0.8757402,2960.0,2959.0,2.50870069]
[1769208670023,0.00259094,2960.2,2959.0,2.50870069]
[1769208670226,1.16637949,2960.1,2959.0,2.50870069]
[1769208670419,0.87574021,2960.0,2959.0,2.50870069]
[1769208670713,0.00259094,2960.2,2959.0,2.50870069]
[1769208670916,1.16640198,2960.1,2959.0,2.50870069]
[1769208671126,0.87575712,2960.0,2959.0,2.50870069]
[1769208671326,0.00259094,2960.2,2959.0,2.50870069]
[1769208671524,1.16642966,2960.1,2959.0,2.50870069]
[1769208671716,0.87577792,2960.0,2959.0,2.50870069]
[1769208671919,0.00259094,2960.2,2959.0,2.50870069]
[1769208672224,1.16642964,2960.1,2959.0,2.50870069]
[1769208672425,0.8757779,2960.0,2959.0,2.50870069]
[1769208672626,0.00259094,2960.2,2959.0,2.50870069]
[1769208672824,0.29065968,2960.1,2959.0,2.50870069]
[1769208673126,0.87580195,2960.0,2959.0,2.50870069]
[1769208673426,0.00259094,2960.2,2959.0,2.50870069]
[1769208673627,1.16650247,2960.1,2959.0,2.50870069]
[1769208673826,0.87583266,2960.0,2959.0,2.50870069]
[1769208674029,0.00259094,2960.2,2959.0,2.50870069]
[1769208674228,1.16650258,2960.1,2959.0,2.50870069]
[1769208674529,0.87583274,2960.0,2959.0,2.50870069]
[1769208674731,0.00259094,2960.2,2959.0,2.50870069]
[1769208674927,1.16655689,2960.1,2959.0,2.50870069]
[1769208675227,1.16657793,2960.0,2959.0,4.92434201]
[1769208675427,0.00259094,2960.2,2959.0,4.92434201]
[1769208675628,1.16664254,2960.1,2959.0,2.50870069]
[1769208675824,1.16664254,2960.0,2959.0,2.50870069]
[1769208676026,0.00259094,2960.2,2959.0,2.50870069]
[1769208676224,1.16664264,2960.1,2959.0,2.50870069]
[1769208676426,1.16664264,2960.0,2959.0,2.50870069]
[1769208676629,0.00259094,2960.2,2959.0,2.50870069]
[1769208676828,1.16665943,2960.1,2959.0,2.50870069]
[1769208677132,1.16665943,2960.0,2959.0,2.50870069]
[1769208677334,0.00259094,2960.2,2959.0,2.50870069]
[1769208677633,1.16668303,2960.1,2959.0,2.50870069]
[1769208677834,1.16668303,2960.0,2959.0,2.50870069]
[1769208678034,0.00259094,2960.2,2959.0,2.50870069]
[1769208678233,1.16668301,2960.1,2959.0,2.50870069]
[1769208678432,1.16668301,2960.0,2959.0,2.50870069]
[1769208678632,0.00259094,2960.2,2959.0,2.50870069]
[1769208678833,1.16672251,2960.1,2959.0,2.50870069]
[1769208679134,1.16672251,2960.0,2959.0,2.50870069]
[1769208679432,0.00259094,2960.2,2959.0,2.50870069]
[1769208679633,1.16672072,2960.1,2959.0,2.50870069]
[1769208679832,1.16672072,2960.0,2959.0,2.50870069]
[1769208680032,0.00259094,2960.2,2959.0,2.50870069]
[1769208680234,1.1667207,2960.1,2959.0,4.92434201]
[1769208680534,0.8759968,2960.0,2959.0,4.92434201]
[1769208680833,0.00259094,2960.2,2959.0,4.92434201]
[1769208681035,1.16659859,2960.1,2959.0,4.92434201]
[1769208681335,0.87590538,2960.0,2959.0,4.92434201]
[1769208681531,0.00259094,2960.2,2959.0,2.41564132]
[1769208681830,1.16654701,2960.1,2959.0,2.41564132]
[1769208682032,0.87586658,2960.0,2959.0,2.41564132]
[1769208682332,0.00259094,2960.2,2959.0,2.41564132]
[1769208682532,1.16651328,2960.1,2959.0,2.41564132]
[1769208682732,0.87584124,2960.0,2959.0,2.41564132]
[1769208682937,0.00259094,2960.2,2959.0,2.41564132]
[1769208683135,1.16651325,2960.1,2959.0,2.41564132]
[1769208683331,0.87584122,2960.0,2959.0,2.41564132]
[1769208683534,0.00259094,2960.2,2959.0,2.41564132]
[1769208683731,1.16648659,2960.1,2959.0,2.41564132]
[1769208683932,0.87582119,2960.0,2959.0,2.41564132]
[1769208684132,0.00259094,2960.2,2959.0,2.41564132]
[1769208684334,1.16648258,2960.1,2958.9,2.58483132]
[1769208684537,0.87581718,2960.0,2958.9,2.58483132]
[1769208684741,0.00259094,2960.2,2958.9,2.58483132]
[1769208684937,1.16646323,2960.1,2958.9,2.58483132]
[1769208685137,0.87580328,2960.0,2958.9,2.58483132]
[1769208685330,0.00259094,2960.2,2958.9,2.58483132]
[1769208685534,1.16644536,2960.1,2958.9,2.58483132]
[1769208685840,0.00259094,2960.2,2959.0,2.41564132]
[1769208686138,1.16644334,2960.1,2959.0,2.41564132]
[1769208686339,0.00259094,2960.2,2959.0,2.41564132]
[1769208686534,1.1664278,2960.1,2959.0,2.41564132]
[1769208686734,0.00259094,2960.2,2959.0,2.41564132]
[1769208686940,1.16642779,2960.1,2959.0,2.41564132]
[1769208687139,0.00259094,2960.2,2959.0,2.41564132]
[1769208687340,1.16642506,2960.1,2959.0,2.41564132]
[1769208687540,0.00259094,2960.2,2959.0,2.41564132]
[1769208687740,0.87576701,2960.1,2959.0,2.41564132]
[1769208687940,0.00259094,2960.2,2959.0,2.41564132]
[1769208688142,1.16641486,2960.1,2959.0,2.41564132]
[1769208688443,0.00259094,2960.2,2959.0,2.41564132]
[1769208688635,1.16640347,2960.1,2959.0,2.41564132]
[1769208688835,0.00259094,2960.2,2959.0,2.41564132]
[1769208689035,1.1664035,2960.1,2959.0,2.41564132]
[1769208689338,0.00259094,2960.2,2959.0,2.41564132]
[1769208689543,1.1663923,2960.1,2959.0,2.41564132]
[1769208689737,0.00259094,2960.2,2959.0,2.41564132]
[1769208689936,1.16639233,2960.1,2959.0,2.41564132]
[1769208690133,0.00259094,2960.2,2959.0,2.41564132]
[1769208690340,1.16639152,2960.1,2959.0,2.41564132]
[1769208690538,0.00259094,2960.2,2959.0,2.41564132]
[1769208690745,1.16638217,2960.1,2959.0,2.41564132]
[1769208691043,0.00259094,2960.2,2959.0,2.41564132]
[1769208691245,1.16638214,2960.1,2959.0,2.41564132]
[1769208691444,0.00259094,2960.2,2959.0,2.41564132]
[1769208691645,1.16637316,2960.1,2959.0,2.41564132]
[1769208691846,0.00259094,2960.2,2959.0,2.41564132]
[1769208692151,1.16637318,2960.1,2959.0,2.41564132]
[1769208692347,0.00259094,2960.2,2959.0,2.41564132]
[1769208692642,1.16636658,2960.1,2959.0,2.41564132]
[1769208692847,0.00259094,2960.2,2959.0,2.41564132]
[1769208693046,1.1663666,2960.1,2959.0,2.41564132]
[1769208693247,0.00259094,2960.2,2959.0,2.41564132]
[1769208693448,1.16636222,2960.1,2959.0,2.41564132]
[1769208693650,0.00259094,2960.2,2959.0,2.41564132]
[1769208693849,1.16636221,2960.1,2959.0,2.41564132]
[1769208694054,0.00259094,2960.2,2959.0,2.41564132]
[1769208694353,1.16636219,2960.1,2959.0,2.41564132]
[1769208694656,0.00259094,2960.2,2959.0,2.41564132]
[1769208694952,1.16636066,2960.1,2959.0,2.41564132]
[1769208695150,0.00259094,2960.2,2959.0,2.41564132]
[1769208695350,1.16636065,2960.1,2959.0,2.41564132]
[1769208695553,0.00259094,2960.2,2959.0,2.41564132]
[1769208695849,1.16636067,2960.1,2959.0,2.41564132]
[1769208696050,0.00259094,2960.2,2959.0,2.41564132]
[1769208696250,1.16636063,2960.1,2959.0,2.41564132]
[1769208696454,0.00259094,2960.2,2959.0,2.41564132]
[1769208696753,1.16636322,2960.1,2959.0,2.41564132]
[1769208696949,0.00259094,2960.2,2959.0,2.41564132]
[1769208697150,1.16636321,2960.1,2959.0,2.41564132]
[1769208697351,0.00259094,2960.2,2959.0,2.41564132]
[1769208697546,1.16636849,2960.1,2959.0,2.41564132]
[1769208697748,2.31571317,2960.2,2959.0,2.41564132]
[1769208697952,1.16636901,2960.1,2959.0,2.41564132]
[1769208698153,2.31571317,2960.2,2959.0,2.41564132]
[1769208698353,1.16636899,2960.1,2959.0,2.41564132]
[1769208698554,2.31571317,2960.2,2959.0,2.41564132]
[1769208698752,1.16637643,2960.1,2959.0,2.41564132]
[1769208699054,2.31571317,2960.2,2959.0,6.75964132]
[1769208699249,1.16637619,2960.1,2959.0,6.75964132]
[1769208699552,2.31571317,2960.2,2959.0,6.75964132]
[1769208699749,1.16638593,2960.1,2959.0,6.75964132]
[1769208699950,2.31571317,2960.2,2959.0,6.75964132]
[1769208700148,1.1663862,2960.1,2959.0,6.75964132]
[1769208700350,2.31571317,2960.2,2959.0,6.75964132]
[1769208700550,1.16639764,2960.1,2959.0,6.75964132]
[1769208700850,2.31571317,2960.2,2959.0,6.75964132]
[1769208701050,1.16639716,2960.1,2959.0,6.75964132]
[1769208701357,0.00259094,2960.2,2959.2,3.29952605]
[1769208701557,0.00259094,2960.2,2959.3,2.4123491]
[1769208710766,4.25151891,2960.9,2959.5,0.88717695]
[1769208710968,3.47902468,2960.8,2959.5,0.88717695]
[1769208711163,1.16590245,2960.7,2959.3,4.82799042]
[1769208711362,2.31312223,2960.8,2959.3,4.82799042]
[1769208711363,1.16590245,2960.6,2959.9,0.00507468]
[1769208711564,1.16590245,2960.5,2959.9,0.00507468]
[1769208711865,0.00261203,2960.6,2959.9,0.00507468]
[1769208712059,1.1656436,2960.5,2959.9,0.00507468]
[1769208712260,0.00261203,2960.6,2959.9,0.00507468]
[1769208712459,0.87503609,2960.5,2959.9,0.00507468]
[1769208712660,0.00261203,2960.6,2959.9,0.00507468]
[1769208712863,0.87503599,2960.5,2959.9,0.00507468]
[1769208713061,0.00261203,2960.6,2959.9,0.00507468]
[1769208713266,0.875036,2960.5,2959.9,0.00507468]
[1769208713467,0.00261203,2960.6,2959.9,0.00507468]
[1769208713668,0.87492216,2960.5,2959.9,0.00507468]
[1769208713869,0.00261203,2960.6,2959.9,0.00507468]
[1769208714075,0.87400221,2960.5,2959.9,0.00507468]
[1769208714271,0.00261203,2960.6,2959.9,0.00507468]
[1769208714568,0.87392751,2960.5,2959.9,0.00507468]
[1769208714770,0.00261203,2960.6,2959.9,0.00507468]
[1769208715068,0.87392144,2960.5,2959.9,0.00507468]
[1769208715367,0.00261203,2960.6,2959.9,0.00507468]
[1769208715570,0.87385523,2960.5,2959.9,0.00507468]
[1769208715761,0.00261203,2960.6,2959.9,0.00507468]
[1769208715961,0.87385523,2960.5,2959.9,0.00507468]
[1769208716162,0.00261203,2960.6,2959.9,0.00507468]
[1769208716362,0.87385523,2960.5,2959.9,0.00507468]
[1769208716568,0.00261203,2960.6,2959.9,0.00507468]
[1769208716761,0.87379986,2960.5,2959.9,0.00507468]
[1769208716961,0.00261203,2960.6,2959.9,0.00507468]
[1769208717168,0.87379979,2960.5,2959.9,0.00507468]
[1769208717369,0.00261203,2960.6,2959.9,0.00507468]
[1769208717567,0.87375626,2960.5,2959.9,0.00507468]
[1769208717768,0.00261203,2960.6,2959.9,0.00507468]
[1769208717967,0.87375155,2960.5,2959.9,0.00507468]
[1769208718269,0.00261203,2960.6,2959.9,0.00507468]
[1769208718471,0.87371395,2960.5,2959.9,0.00507468]
[1769208718668,0.00261203,2960.6,2959.9,0.00507468]
[1769208718874,0.87371218,2960.5,2959.9,0.00507468]
[1769208719168,0.00261203,2960.6,2959.9,0.00507468]
[1769208719370,0.87371237,2960.5,2959.9,0.00507468]
[1769208719570,0.00261203,2960.6,2959.9,0.00507468]
[1769208719766,0.87368375,2960.5,2959.9,0.00507468]
[1769208719966,0.00261203,2960.6,2959.9,0.00507468]
[1769208720167,0.87368375,2960.5,2959.9,0.00507468]
[1769208720370,0.00261203,2960.6,2959.9,0.00507468]
[1769208720569,0.87368147,2960.5,2959.9,0.00507468]
[1769208720772,0.00261203,2960.6,2959.9,0.00507468]
[1769208720965,0.87368136,2960.5,2959.9,0.00507468]
[1769208721167,0.00261203,2960.6,2959.9,0.00507468]
[1769208721368,0.87366248,2960.5,2959.9,0.00507468]
[1769208721568,0.00261203,2960.6,2959.9,0.00507468]
[1769208721967,2.31312223,2960.5,2959.9,0.00507468]
[1769208722163,2.31819691,2960.5,2959.3,2.758]
[1769208722359,0.00507468,2960.5,2959.3,4.99353867]
[1769208722570,0.00507468,2960.5,2959.4,2.23553867]
[1769208724869,0.00507468,2960.5,2959.3,2.758]
[1769208725266,0.00507468,2960.5,2959.4,4.382]
[1769208728373,2.28788435,2960.5,2959.4,4.382]
[1769208729671,2.28788435,2960.5,2959.2,3.47198827]
[1769208730274,2.573167,2960.4,2959.2,3.47198827]
[1769208730478,2.28280967,2960.4,2959.2,3.47198827]
[1769208731977,2.57321124,2960.3,2959.2,0.16917]
[1769208732178,2.28280967,2960.3,2959.2,0.16917]
[1769208733377,2.28280967,2960.3,2959.1,4.395]
[1769208735477,2.28280967,2960.3,2959.1,6.81064132]
[1769208736880,2.28280967,2960.3,2959.1,4.395]
[1769208737074,2.28280967,2960.3,2959.0,3.30281827]
[1769208737278,2.28280967,2960.3,2959.0,7.70881827]
[1769208745990,2.28280967,2960.3,2959.0,3.30281827]
[1769208746187,2.28280967,2960.3,2959.0,7.72881827]
[1769208748193,2.28280967,2960.3,2959.1,2.41564132]
[1769208753095,2.37407043,2960.1,2958.9,2.41564132]
[1769208753298,2.37407043,2959.9,2958.6,5.79764132]
[1769208753598,2.37407043,2959.6,2958.2,2.41564132]
[1769208753799,2.37407043,2959.4,2958.2,2.41564132]
[1769208754196,2.37407043,2959.4,2958.1,6.86074381]
[1769208755500,2.37407043,2959.4,2958.5,0.00507468]
[1769208775602,2.54323043,2959.4,2958.1,0.00410249]
[1769208775809,2.37407043,2959.2,2958.1,0.00410249]
[1769208777012,2.37914511,2958.9,2958.1,0.00410249]
[1769208781918,0.00507468,2958.9,2958.1,0.00410249]
[1769208782417,2.36256234,2958.9,2958.1,0.00410249]
[1769208789933,2.36256234,2958.9,2957.2,2.41564132]
[1769208789934,2.21052404,2958.5,2957.2,2.41564132]
[1769208790136,3.08085373,2958.4,2957.0,2.41564132]
[1769208790341,2.21052404,2958.3,2956.9,2.58494132]
[1769208790635,2.21052404,2958.3,2956.9,4.84604541]
[1769208790838,2.21457088,2958.3,2956.9,4.85023062]
[1769208794336,2.21457088,2958.3,2956.9,2.4345893]
[1769208798744,2.21457088,2958.3,2956.9,6.9025893]
[1769208800043,2.21457088,2958.3,2956.9,4.64148521]
[1769208800244,2.21457088,2958.3,2956.9,0.17348521]
[1769208809045,2.21457088,2958.3,2956.9,2.58912653]
[1769208810849,0.88836711,2958.2,2956.9,2.58912653]
[1769208812948,0.00404684,2958.3,2957.4,3.28024197]
[1769208813144,0.00404684,2958.3,2957.4,3.44951197]
[1769208814250,0.00404684,2958.3,2957.4,2.56114486]
[1769208819750,0.00404684,2958.3,2957.4,4.97678618]
[1769208822152,0.00404684,2958.3,2957.5,2.41564132]
[1769208822352,0.88836711,2958.8,2957.6,2.39187486]
[1769208823248,0.89164051,2958.8,2957.6,2.39187486]
[1769208824354,0.89164051,2958.8,2957.7,4.512]
[1769208824545,0.89164051,2958.8,2957.7,6.90387486]
[1769208828253,0.0013506,2958.8,2957.8,2.56112486]
[1769208836664,0.0013506,2958.8,2957.8,0.16925]
[1769208841268,0.0013506,2958.8,2957.8,2.58489132]
[1769208846071,0.0013506,2958.8,2957.8,5.11702382]
[1769208849272,0.0013506,2958.8,2957.9,2.41564132]
[1769208865792,0.0013506,2958.8,2958.0,2.41564132]
[1769208873698,0.0013506,2958.8,2958.1,2.41564132]
[1769208874899,2.51299122,2959.6,2958.1,2.41564132]
[1769208875098,1.1640245,2959.5,2958.1,2.41564132]
[1769208875299,1.1640245,2959.4,2958.1,2.41564132]
[1769208875597,1.1640245,2959.3,2958.1,2.41564132]
[1769208875799,1.1640245,2959.2,2958.1,2.41564132]
[1769208875998,0.00275318,2959.2,2958.1,2.41564132]
[1769208876695,0.00275318,2959.2,2958.1,2.58487132]
[1769208887804,0.00275318,2959.2,2958.1,5.03006614]
[1769208893406,0.00275318,2959.2,2958.2,2.41564132]
[1769208896514,0.00507468,2959.0,2958.2,2.41564132]
[1769208904711,0.00275318,2959.2,2958.2,4.87658534]
[1769208905016,2.41524903,2960.0,2958.4,2.46094402]
[1769208905216,1.16397189,2959.9,2958.4,2.46094402]
[1769208905418,1.16397189,2959.8,2958.4,2.46094402]
[1769208905605,1.16397189,2959.7,2958.4,2.46094402]
[1769208905812,1.16397189,2959.6,2958.4,2.46094402]
[1769208906116,1.16397189,2959.5,2958.4,2.46094402]
[1769208906318,0.87330705,2959.4,2958.4,2.46094402]
[1769208906505,0.00328797,2959.6,2958.4,2.46094402]
[1769208906711,1.16379411,2959.5,2958.4,2.46094402]
[1769208906912,0.87317772,2959.4,2958.4,2.46094402]
[1769208907112,0.00328797,2959.6,2958.4,2.46094402]
[1769208907411,1.16373699,2959.5,2958.4,2.46094402]
[1769208907613,0.87312098,2959.4,2958.4,2.46094402]
[1769208907814,0.00328797,2959.6,2958.4,2.46094402]
[1769208908013,1.16369021,2959.5,2958.4,2.46094402]
[1769208908209,0.87309923,2959.4,2958.4,2.46094402]
[1769208908414,0.00328797,2959.6,2958.4,2.46094402]
[1769208908615,1.16360945,2959.5,2958.4,2.46094402]
[1769208908822,0.00328797,2959.6,2958.4,2.46094402]
[1769208909020,1.16358929,2959.5,2958.4,2.46094402]
[1769208909213,0.00328797,2959.6,2958.4,2.46094402]
[1769208909414,1.16351095,2959.5,2958.4,2.46094402]
[1769208909712,0.00328797,2959.6,2958.4,2.46094402]
[1769208909909,1.16351136,2959.5,2958.4,2.46094402]
[1769208910116,0.00328797,2959.6,2958.4,2.63016402]
[1769208910316,1.16346454,2959.5,2958.4,2.63016402]
[1769208910616,0.00328797,2959.6,2958.4,2.63016402]
[1769208910816,1.16346503,2959.5,2958.4,2.63016402]
[1769208911017,0.00328797,2959.6,2958.4,2.63016402]
[1769208911219,1.16346504,2959.5,2958.4,2.63016402]
[1769208911422,0.00328797,2959.6,2958.4,2.63016402]
[1769208911617,1.16341544,2959.5,2958.4,2.63016402]
[1769208911817,0.00328797,2959.6,2958.4,2.63016402]
[1769208912123,1.16341545,2959.5,2958.4,2.63016402]
[1769208912316,0.00328797,2959.6,2958.4,2.63016402]
[1769208912517,1.16338209,2959.5,2958.4,2.63016402]
[1769208912717,0.00328797,2959.6,2958.4,2.63016402]
[1769208912918,1.1633821,2959.5,2958.4,2.63016402]
[1769208913123,0.00328797,2959.6,2958.4,2.63016402]
[1769208913325,0.00328797,2959.6,2958.4,0.16922]
[1769208913326,1.16336551,2959.5,2958.4,0.16922]
[1769208913624,3.16210082,2959.4,2958.5,4.77]
[1769208913824,2.2892614,2959.4,2958.5,4.77]
[1769208918919,0.00328797,2959.6,2958.5,4.77]
[1769208919128,1.16352782,2959.5,2958.5,4.77]
[1769208919321,0.00328797,2959.6,2958.5,4.77]
[1769208919518,1.1635001,2959.5,2958.5,4.77]
[1769208919722,0.00328797,2959.6,2958.5,4.77]
[1769208919924,1.16350013,2959.5,2958.5,4.77]
[1769208920124,0.00328797,2959.6,2958.5,4.77]
[1769208920427,1.16349706,2959.5,2958.5,4.77]
[1769208920630,0.00328797,2959.6,2958.5,4.77]
[1769208920929,1.1634963,2959.5,2958.5,4.77]
[1769208921130,0.00328797,2959.6,2958.5,4.77]
[1769208921326,1.16349904,2959.5,2958.5,4.77]
[1769208921523,0.00328797,2959.6,2958.5,4.77]
[1769208921724,1.16350048,2959.5,2958.5,4.77]
[1769208922024,0.00328797,2959.6,2958.5,4.77]
[1769208922225,1.16351345,2959.5,2958.5,4.77]
[1769208922425,0.00328797,2959.6,2958.5,4.77]
[1769208922621,1.16351316,2959.5,2958.5,4.77]
[1769208922821,0.00328797,2959.6,2958.5,4.77]
[1769208923025,1.16351315,2959.5,2958.5,4.77]
[1769208923229,0.00328797,2959.6,2958.5,4.77]
[1769208923530,1.16352587,2959.5,2958.5,4.77]
[1769208923729,0.00328797,2959.6,2958.5,4.77]
[1769208924037,1.16353174,2959.5,2958.5,7.22572379]
[1769208924237,0.00328797,2959.6,2958.5,7.22572379]
[1769208924531,1.16416952,2959.5,2958.5,7.22572379]
[1769208924732,0.00328797,2959.6,2958.5,7.22572379]
[1769208924928,1.16417294,2959.5,2958.5,7.22572379]
[1769208925128,0.00328797,2959.6,2958.5,7.22572379]
[1769208925330,1.16418622,2959.5,2958.5,7.22572379]
[1769208925629,0.00328797,2959.6,2958.5,7.22572379]
[1769208925930,1.16418938,2959.5,2958.5,7.22572379]
[1769208926233,0.00328797,2959.6,2958.5,7.22572379]
[1769208926423,1.16418837,2959.5,2958.5,7.22572379]
[1769208926626,0.00328797,2959.6,2958.5,7.22572379]
[1769208926834,1.16421767,2959.5,2958.5,7.22572379]
[1769208927034,0.00328797,2959.6,2958.5,7.22572379]
[1769208927235,1.16423913,2959.5,2958.5,7.22572379]
[1769208927534,0.00328797,2959.6,2958.5,7.22572379]
[1769208927733,1.16424787,2959.5,2958.5,7.22572379]
[1769208928033,0.00328797,2959.6,2958.5,7.22572379]
[1769208928233,1.16427281,2959.5,2958.5,7.22572379]
[1769208928434,0.00328797,2959.6,2958.5,7.22572379]
[1769208928633,1.16428746,2959.5,2958.5,7.22572379]
[1769208928835,0.00328797,2959.6,2958.5,7.22572379]
[1769208929035,1.16428744,2959.5,2958.5,7.22572379]
[1769208929235,0.00328797,2959.6,2958.5,7.22572379]
[1769208929438,1.16431698,2959.5,2958.5,7.22572379]
[1769208929638,0.00328797,2959.6,2958.5,7.22572379]
[1769208929935,0.00507468,2959.3,2958.5,7.22572379]
[1769208931938,0.00507468,2959.3,2958.5,4.77]
[1769208935950,0.00507468,2959.3,2958.4,2.58486132]
[1769208936153,0.00507468,2959.3,2958.5,4.835]
[1769208938858,0.00507468,2959.3,2958.4,2.58486132]
[1769208939050,0.00507468,2959.3,2958.5,4.843]
[1769208952666,0.00507468,2959.3,2958.5,7.25864132]
[1769208953665,0.00507468,2959.3,2958.5,4.843]
[1769208953861,0.00507468,2959.3,2958.5,7.25864132]
[1769208955659,0.00328797,2959.6,2958.5,9.59215622]
[1769208957567,0.00328797,2959.6,2958.7,4.74915622]
[1769208963270,0.00328797,2959.6,2958.7,4.91835622]